[Event "Romania GP Final-KO 2024"]
[Site "Alba Iulia"]
[Date "2024.11.26"]
[Round "1.1"]
[White "Kantor, Gergely"]
[Black "Kozak, Adam"]
[Result "1/2-1/2"]
[ECO "D37"]
[WhiteElo "2554"]
[BlackElo "2591"]
[Annotator "TA"]
[PlyCount "67"]
[EventDate "2024.11.22"]
[EventType "k.o."]
[EventCountry "ROU"]
[SourceTitle "playchess.com"]
[Source "ChessBase"]
[SourceQuality "1"]
[TimeControl "900+5"]

{[%evp 14,67,26,20,25,16,27,12,21,0,9,-2,32,0,0,0,0,-16,90,72,62,59,67,70,66,59,91,39,31,41,38,0,59,64,141,130,132,31,174,164,164,88,87,82,97,0,105,108,104,116,118,112,120,86,91,38]} 1. d4 {[%emt 0:00:01]} Nf6 {[%emt 0:00:10]} 2. c4 {[%emt 0:00:02]} e6 {[%emt 0:00:03]} 3. Nf3 {[%emt 0:00:02]} d5 {[%emt 0:00:03]} 4. Nc3 {[%emt 0:00:03]} Nbd7 {[%emt 0:00:23]} 5. Bf4 {[%emt 0:00:27]} dxc4 {[%emt 0:00:07]} 6. e3 {[%emt 0:00:04]} Nd5 {[%emt 0:00:03]} 7. Bxc4 {[%emt 0:00:07]} Nxf4 {[%emt 0:00:02]} 8. exf4 {[%emt 0:00:03]} Nb6 {[%emt 0:00:03][%cal Od8f6]} 9. Bb3 {[%emt 0:00:53]} g6 {[%emt 0:00:05]} 10. h4 {[%emt 0:00:03]} Bg7 {[%emt 0:00:07] The position is equal.} 11. h5 {[%emt 0:00:02]} Bd7 {[%emt 0:01:07]} 12. Ne5 {[%emt 0:02:35]} Bc6 {[%emt 0:02:56] Repels Qf3} 13. Qg4 {[%emt 0:00:32][%cal Oe5f7] Threatens to win with Nxf7!} Qe7 {[%emt 0:01:01]} (13... Qxd4 $2 {perishes.} 14. Nxf7 Qd3 (14... Kxf7 15. Qxe6+ Kf8 16. Qf7#) 15. Rh3 $18 (15. Nxh8 $2 Bxc3+ 16. bxc3 Qxc3+ 17. Kf1 Qxa1+ 18. Qd1 Qxh8 $19) (15. Qxe6+ Kf8 $18) (15. Bxe6 $2 Bxc3+ 16. bxc3 Qxc3+ 17. Ke2 Bb5+ 18. Kd1 Qxa1+ $19)) 14. O-O-O {[%emt 0:00:48]} O-O-O {[%emt 0:01:11]} 15. h6 {[%emt 0:02:08]} Bf6 {[%emt 0:00:11]} (15... Bxe5 $11 16. fxe5 Kb8) 16. d5 $16 {[%emt 0:01:02]} Bxe5 {[%emt 0:02:25]} 17. fxe5 {[%emt 0:00:10]} Bd7 {[%emt 0:00:24]} 18. d6 {[%emt 0:01:03]} cxd6 {[%emt 0:00:09]} 19. exd6 {[%emt 0:00:02]} Qf8 {[%emt 0:02:30]} 20. a4 {[%emt 0:00:41] Black is weak on the dark squares} ({Better is} 20. Qf4 $16) 20... Kb8 $1 $14 {[%emt 0:01:53]} 21. Qf4 {[%emt 0:02:06]} Bc6 {[%emt 0:00:12]} 22. a5 {[%emt 0:00:29]} Nd7 {[%emt 0:00:01]} ({Black should try} 22... Nd5 $1 $11 23. Nxd5 (23. Bxd5 exd5 24. Rh4 Rg8 $15) 23... exd5) 23. f3 $36 {[%emt 0:00:15][%mdl 2048] White has some pressure.} Rg8 {[%emt 0:01:13]} (23... g5 $14 24. Qd4 (24. Qxg5 Rg8 $16) 24... Rg8) 24. Qb4 {[%emt 0:01:12]} a6 {[%emt 0:00:12]} 25. Bc2 {[%emt 0:00:09]} (25. Ne4 $16) 25... f5 {[%emt 0:00:17]} (25... Rc8 $14) 26. Bb3 $1 $18 {[%emt 0:00:17]} Qf6 {[%emt 0:00:01]} 27. Ne2 {[%emt 0:00:14]} ({White should play} 27. Kb1 $18) 27... Rc8 $16 {[%emt 0:00:25]} 28. Kb1 $1 {[%emt 0:00:03] aiming for Rc1.} Rgd8 {[%emt 0:00:03][%cal Od7c5] [#]} 29. Nf4 {[%emt 0:00:17]} (29. Nc3 $1 $16) 29... Nf8 {[%emt 0:00:06]} (29... Nc5 $1 $11 {keeps the balance.}) 30. Rhe1 {[%emt 0:00:44] White is better.} e5 {[%emt 0:00:01]} 31. Nd5 {[%emt 0:00:25] White is much more active.} Qxd6 {[%emt 0:00:01]} 32. Qxd6+ {[%emt 0:00:20]} Rxd6 {[%emt 0:00:01]} 33. Rxe5 {[%emt 0:00:18]} Rcd8 {[%emt 0:00:16] [#]} 34. Nc3 {[%emt 0:00:04] Weighted Error Value: White=0.26 (precise) /Black=0.28 (precise) .  Mistake:       	White=5     	Black=5      Inaccurate:     	White=2     	Black=2      OK:         	White=6     	Black=12     Best:        	White=1     	Black=2      Strong:       	White=1     	Black=1} (34. Ka2 $1 $16) 1/2-1/2

[Event "Romania GP Final-KO 2024"]
[Site "Alba Iulia"]
[Date "2024.11.26"]
[Round "1.1"]
[White "Gavrilescu, David"]
[Black "Deac, Bogdan-Daniel"]
[Result "0-1"]
[ECO "C54"]
[WhiteElo "2545"]
[BlackElo "2687"]
[Annotator "ChessBase"]
[PlyCount "130"]
[EventDate "2024.11.22"]
[EventType "k.o."]
[EventCountry "ROU"]
[SourceTitle "playchess.com"]
[Source "ChessBase"]
[SourceQuality "1"]
[TimeControl "900+5"]

1. e4 {[%emt 0:00:05]} e5 {[%emt 0:00:02]} 2. Nf3 {[%emt 0:00:05]} Nc6 {[%emt 0:00:03]} 3. Bc4 {[%emt 0:00:08]} Bc5 {[%emt 0:00:07]} 4. c3 {[%emt 0:00:06]} Nf6 {[%emt 0:00:02]} 5. d3 {[%emt 0:00:03]} a6 {[%emt 0:00:40]} 6. Bg5 {[%emt 0:00:50]} h6 {[%emt 0:01:07]} 7. Bh4 {[%emt 0:00:03]} Be7 {[%emt 0:00:03]} 8. Bg3 {[%emt 0:00:44]} d6 {[%emt 0:00:04]} 9. a4 {[%emt 0:00:01]} g6 {[%emt 0:00:17]} 10. Nbd2 {[%emt 0:02:45]} Nh5 {[%emt 0:00:14]} 11. a5 {[%emt 0:00:52]} O-O {[%emt 0:01:38]} 12. h3 {[%emt 0:00:45]} Bg5 {[%emt 0:04:09]} 13. Nxg5 {[%emt 0:00:35]} hxg5 {[%emt 0:00:28]} 14. Nf1 {[%emt 0:00:02]} Kg7 {[%emt 0:01:51]} 15. f3 {[%emt 0:00:15]} Nxg3 {[%emt 0:04:26]} 16. Nxg3 {[%emt 0:00:02]} Rh8 {[%emt 0:00:06]} 17. Qd2 {[%emt 0:02:17]} Qf6 {[%emt 0:00:12]} 18. Rg1 {[%emt 0:03:27]} Qf4 {[%emt 0:00:28]} 19. Nf1 {[%emt 0:00:28]} Bd7 {[%emt 0:00:30]} 20. Ne3 {[%emt 0:00:31]} Qh4+ {[%emt 0:00:01]} 21. Kd1 {[%emt 0:00:18]} Qf4 {[%emt 0:00:12]} 22. Kc2 {[%emt 0:00:03]} Be6 {[%emt 0:00:07]} 23. Qf2 {[%emt 0:00:40]} Qf6 {[%emt 0:00:03]} 24. Nd5 {[%emt 0:00:21]} Qd8 {[%emt 0:00:02]} 25. Rh1 {[%emt 0:00:22]} Ne7 {[%emt 0:00:02]} 26. Ne3 {[%emt 0:00:03]} d5 {[%emt 0:00:02]} 27. exd5 {[%emt 0:00:53]} Nxd5 {[%emt 0:00:01]} 28. Bxd5 {[%emt 0:00:14]} Bxd5 {[%emt 0:00:02]} 29. Rhd1 {[%emt 0:00:02]} Be6 {[%emt 0:00:10]} 30. d4 {[%emt 0:00:02]} exd4 {[%emt 0:00:02]} 31. Rxd4 {[%emt 0:00:02]} Qf6 {[%emt 0:00:09]} 32. Rad1 {[%emt 0:00:03]} Qe5 {[%emt 0:00:09]} 33. Nc4 {[%emt 0:00:20]} Qb5 {[%emt 0:00:09]} 34. b3 {[%emt 0:00:08]} Rae8 {[%emt 0:00:09]} 35. Kb2 {[%emt 0:00:15]} Re7 {[%emt 0:00:03]} 36. Re4 {[%emt 0:00:02]} f6 {[%emt 0:00:07]} 37. Rde1 {[%emt 0:00:03]} Rhe8 {[%emt 0:00:01]} 38. Qe2 {[%emt 0:00:06]} Kf7 {[%emt 0:00:07]} 39. b4 {[%emt 0:00:07]} Kg7 {[%emt 0:00:07]} 40. Nd2 {[%emt 0:00:06]} Qd5 {[%emt 0:00:06]} 41. Nc4 {[%emt 0:00:08]} Kf8 {[%emt 0:00:03]} 42. Rd1 {[%emt 0:00:02]} Qb5 {[%emt 0:00:02]} 43. Nd2 {[%emt 0:00:06]} Qa4 {[%emt 0:00:05]} 44. Ra1 {[%emt 0:00:03]} Qd7 {[%emt 0:00:02]} 45. Rd4 {[%emt 0:00:04]} Qc8 {[%emt 0:00:07]} 46. Re4 {[%emt 0:00:07]} Bf5 {[%emt 0:00:07]} 47. Rxe7 {[%emt 0:00:02]} Rxe7 {[%emt 0:00:01]} 48. Ne4 {[%emt 0:00:10]} Bxe4 {[%emt 0:00:10]} 49. fxe4 {[%emt 0:00:00]} Qe6 {[%emt 0:00:01]} 50. Rf1 {[%emt 0:00:04]} Kg7 {[%emt 0:00:08]} 51. Qf2 {[%emt 0:00:02]} Rd7 {[%emt 0:00:08]} 52. Re1 {[%emt 0:00:07]} Qe5 {[%emt 0:00:05]} 53. Re3 {[%emt 0:00:08]} c5 {[%emt 0:00:02]} 54. Qg3 {[%emt 0:00:10]} Qe6 {[%emt 0:00:03]} 55. Re2 {[%emt 0:00:05]} cxb4 {[%emt 0:00:08]} 56. e5 {[%emt 0:00:03]} f5 {[%emt 0:00:08]} 57. cxb4 {[%emt 0:00:06]} Qc4 {[%emt 0:00:01]} 58. Rc2 {[%emt 0:00:03]} Qxb4+ {[%emt 0:00:01]} 59. Qb3 {[%emt 0:00:01]} Qxa5 {[%emt 0:00:09]} 60. e6 {[%emt 0:00:04]} Qe5+ {[%emt 0:00:01]} 61. Ka2 {[%emt 0:00:00]} Re7 {[%emt 0:00:02]} 62. Ka3 {[%emt 0:00:19]} Qxe6 {[%emt 0:00:08]} 63. Qc3+ {[%emt 0:00:03]} Qf6 {[%emt 0:00:04]} 64. Qc5 {[%emt 0:00:03]} Qa1+ {[%emt 0:00:04]} 65. Kb3 {[%emt 0:00:01]} Qe5 {[%emt 0:00:03]} 0-1

[Event "Romania GP Final-KO 2024"]
[Site "Alba Iulia"]
[Date "2024.11.26"]
[Round "1.1"]
[White "Ghimpu, Samuel-Timotei"]
[Black "Santos Latasa, Jaime"]
[Result "1/2-1/2"]
[ECO "D02"]
[WhiteElo "2473"]
[BlackElo "2630"]
[Annotator "TA"]
[PlyCount "68"]
[EventDate "2024.11.22"]
[EventType "k.o."]
[EventCountry "ROU"]
[SourceTitle "playchess.com"]
[Source "ChessBase"]
[SourceQuality "1"]
[TimeControl "900+5"]

{[%evp 11,68,-5,0,-6,0,-11,0,-11,-14,-10,-12,-10,-2,-12,-8,-16,-9,-18,-15,-19,0,-17,0,-9,0,-10,-3,-33,-31,-27,-31,-25,-34,-22,-34,-22,-19,-19,-12,-15,-10,-47,0,-4,-8,-8,0,0,0,0,0,0,0,0,0,0,16,8,8]} 1. d4 {[%emt 0:00:12]} d5 {[%emt 0:00:07]} 2. Nf3 {[%emt 0:00:09]} e6 {[%emt 0:00:03]} 3. Bf4 {[%emt 0:00:30]} Bd6 {[%emt 0:00:02]} 4. Bg3 {[%emt 0:00:08]} Nf6 {[%emt 0:00:03]} 5. e3 {[%emt 0:00:13]} O-O {[%emt 0:00:07]} 6. Bd3 {[%emt 0:00:23]} c5 {[%emt 0:00:19]} 7. c3 {[%emt 0:00:44]} Qc7 {[%emt 0:00:08]} 8. Ne5 {[%emt 0:00:25]} b6 {[%emt 0:01:13]} 9. Nd2 {[%emt 0:00:32]} Ba6 {[%emt 0:00:08]} 10. Bxa6 {[%emt 0:03:03]} Nxa6 {[%emt 0:00:02]} 11. O-O {[%emt 0:00:07]} Nb8 {[%emt 0:00:23]} 12. Qe2 {[%emt 0:00:31]} Nc6 {[%emt 0:01:36]} 13. Nxc6 {[%emt 0:01:32] [#] Hoping for Bxd6.} Qxc6 {[%emt 0:00:29]} 14. a4 {[%emt 0:00:54]} Bxg3 {[%emt 0:00:21]} 15. hxg3 {[%emt 0:00:02]} a6 {[%emt 0:00:16]} 16. Rfe1 {[%emt 0:02:27]} Rfd8 {[%emt 0:01:16]} 17. Rec1 {[%emt 0:00:44]} Qd6 {[%emt 0:01:11]} 18. Nf3 {[%emt 0:00:23]} a5 {[%emt 0:02:41]} 19. Qb5 {[%emt 0:01:17]} Rac8 {[%emt 0:00:06]} 20. c4 {[%emt 0:00:26]} cxd4 {[%emt 0:00:17]} 21. exd4 {[%emt 0:00:01]} dxc4 {[%emt 0:00:18]} 22. Rxc4 {[%emt 0:00:02]} Rxc4 {[%emt 0:00:13]} 23. Qxc4 {[%emt 0:00:02]} Nd5 {[%emt 0:00:09]} 24. Rc1 {[%emt 0:00:16]} g6 {[%emt 0:00:07]} 25. Qb5 {[%emt 0:00:22]} Ne7 {[%emt 0:00:52]} 26. g4 {[%emt 0:00:39]} h6 {[%emt 0:00:17]} 27. g3 {[%emt 0:00:08] The position is equal.} Kg7 {[%emt 0:00:13]} 28. Kg2 {[%emt 0:00:02]} g5 {[%emt 0:00:40]} 29. b3 {[%emt 0:00:14]} Qb8 {[%emt 0:00:24]} 30. Kg1 {[%emt 0:00:41]} Rd5 {[%emt 0:00:07]} 31. Qc4 {[%emt 0:00:09]} Ng6 {[%emt 0:00:39]} 32. Qc7 {[%emt 0:00:06]} Qxc7 {[%emt 0:00:25]} 33. Rxc7 {[%emt 0:00:02]} b5 {[%emt 0:00:17]} 34. Kf1 {[%emt 0:00:09]} bxa4 {[%emt 0:00:34] Not much happened in this game.   Weighted Error Value: White=0.06 (flawless) /Black=0.06 (flawless) .  Inaccurate:     	White=2     	Black=1      OK:         	White=9     	Black=6} 1/2-1/2

[Event "Romania GP Final-KO 2024"]
[Site "Alba Iulia"]
[Date "2024.11.26"]
[Round "1.1"]
[White "Nedelcu, Teodor-Cosmin"]
[Black "Nisipeanu, Liviu-Dieter"]
[Result "0-1"]
[ECO "E11"]
[WhiteElo "2320"]
[BlackElo "2596"]
[Annotator "TA"]
[PlyCount "44"]
[EventDate "2024.11.22"]
[EventType "k.o."]
[EventCountry "ROU"]
[SourceTitle "playchess.com"]
[Source "ChessBase"]
[SourceQuality "1"]
[TimeControl "900+5"]

{[%evp 11,44,2,0,1,19,10,10,0,0,-35,-29,-39,-33,-41,-36,-48,-31,-64,-43,-47,-43,-58,-12,-14,-13,-46,-11,-46,-18,-27,-34,-635,-643,-1168,-1147]} 1. d4 {[%emt 0:00:02]} Nf6 {[%emt 0:00:02]} 2. c4 {[%emt 0:00:05]} e6 {[%emt 0:00:01]} 3. Nf3 {[%emt 0:00:02]} Bb4+ {[%emt 0:00:25]} 4. Bd2 {[%emt 0:00:04]} Qe7 {[%emt 0:00:01]} 5. Qc2 {[%emt 0:00:18]} Bxd2+ {[%emt 0:00:16]} 6. Nbxd2 {[%emt 0:00:04]} d6 {[%emt 0:00:00]} 7. g3 {[%emt 0:00:13]} O-O {[%emt 0:00:12]} 8. Bg2 {[%emt 0:00:02]} e5 {[%emt 0:00:01]} 9. e3 {[%emt 0:01:22] The position is equal.} Re8 {[%emt 0:00:48]} 10. dxe5 {[%emt 0:00:15]} dxe5 {[%emt 0:00:01]} 11. O-O {[%emt 0:00:54]} e4 {[%emt 0:00:46]} 12. Nd4 {[%emt 0:00:02]} c5 {[%emt 0:00:01]} 13. Ne2 {[%emt 0:00:02]} Nc6 {[%emt 0:00:04]} 14. Nc3 {[%emt 0:00:22][%cal Rd2e4]} Bf5 {[%emt 0:01:29]} 15. a3 {[%emt 0:00:55]} Rad8 {[%emt 0:00:03] Against Nd5} 16. Rad1 {[%emt 0:00:26]} Bg6 {[%emt 0:00:54]} (16... b6 $15) 17. h3 $11 {[%emt 0:00:32]} h6 {[%emt 0:01:29]} 18. Kh2 {[%emt 0:00:06]} Rd6 {[%emt 0:00:57]} 19. Nb3 {[%emt 0:02:23]} Ne5 {[%emt 0:01:18]} 20. Rxd6 {[%emt 0:01:01]} Qxd6 {[%emt 0:00:02]} 21. Nxe4 $2 {[%emt 0:01:43][%mdl 8192] [#]} (21. Rd1 $15 Qe7 22. Nd2 (22. Bxe4 $2 {perishes.} Nxe4 23. Qe2 Nxc3 $19)) 21... Nxe4 $19 {[%emt 0:00:06]} 22. Bxe4 {[%emt 0:00:06]} Nf3+ {[%emt 0:00:01] Weighted Error Value: White=0.83/Black=0.11 (very precise) .  Loses game:     	White=1     	---        Mistake:       	---       	Black=1      Inaccurate:     	White=5     	Black=2      OK:         	White=4     	Black=5      Best:        	White=1     	Black=1} 0-1

[Event "Romania GP Final-KO 2024"]
[Site "Alba Iulia"]
[Date "2024.11.26"]
[Round "1.1"]
[White "Sachilaru, Alexandru"]
[Black "Secheres, Adrian-Simion"]
[Result "0-1"]
[ECO "C28"]
[WhiteElo "2305"]
[BlackElo "2350"]
[Annotator "RC"]
[PlyCount "84"]
[EventDate "2024.11.22"]
[EventType "k.o."]
[EventCountry "ROU"]
[SourceTitle "playchess.com"]
[Source "ChessBase"]
[SourceQuality "1"]
[TimeControl "900+5"]

1. e4 {[%emt 0:00:03]} Nc6 {[%emt 0:00:03]} 2. Nc3 {[%emt 0:00:14]} e5 {[%emt 0:00:05]} 3. Bc4 {[%emt 0:00:08]} Nf6 {[%emt 0:00:22]} 4. d3 {[%emt 0:00:10]} Na5 {[%emt 0:00:39]} 5. Nge2 {[%emt 0:00:31]} c6 {[%emt 0:00:39]} 6. O-O {[%emt 0:00:42]} Bc5 {[%emt 0:01:51]} 7. a3 {[%emt 0:00:32]} Nxc4 {[%emt 0:00:11]} 8. dxc4 {[%emt 0:00:02]} a5 {[%emt 0:00:23]} 9. Qd3 {[%emt 0:00:58]} O-O {[%emt 0:00:25]} 10. Be3 {[%emt 0:00:48]} Bxe3 {[%emt 0:01:42]} 11. Qxe3 {[%emt 0:00:24]} d6 {[%emt 0:00:20]} 12. Rad1 {[%emt 0:01:30]} Qc7 {[%emt 0:00:40]} 13. Rd3 {[%emt 0:00:54]} Be6 {[%emt 0:00:14]} 14. b3 {[%emt 0:00:04]} a4 {[%emt 0:00:23]} 15. Qc1 {[%emt 0:01:56]} axb3 {[%emt 0:00:24]} 16. cxb3 {[%emt 0:00:01]} Nd7 {[%emt 0:00:24]} 17. Rg3 {[%emt 0:01:11]} f5 {[%emt 0:02:15]} 18. exf5 {[%emt 0:01:25]} Bxf5 {[%emt 0:00:18]} 19. Rd1 {[%emt 0:00:54]} Bg6 {[%emt 0:00:32]} 20. h4 {[%emt 0:01:05]} Nf6 {[%emt 0:00:24]} 21. b4 {[%emt 0:00:50]} Nh5 {[%emt 0:00:15]} 22. Rg4 {[%emt 0:01:16]} Qf7 {[%emt 0:00:52]} 23. Qe3 {[%emt 0:00:19]} Bf5 {[%emt 0:00:32]} 24. Rg5 {[%emt 0:00:21]} h6 {[%emt 0:00:04]} 25. Rxf5 {[%emt 0:00:10]} Qxf5 {[%emt 0:00:02]} 26. Ne4 {[%emt 0:00:07]} Qg4 {[%emt 0:01:28]} 27. Rxd6 {[%emt 0:00:18]} Nf4 {[%emt 0:00:19]} 28. Nxf4 exf4 {[%emt 0:00:02]} 29. Qb3 {[%emt 0:00:28]} f3 {[%emt 0:00:08]} 30. c5+ {[%emt 0:00:03]} Kh8 {[%emt 0:00:05]} 31. Ng3 {[%emt 0:00:03]} Rae8 {[%emt 0:00:06]} 32. Rd1 {[%emt 0:00:07]} fxg2 {[%emt 0:00:37]} 33. Kxg2 {[%emt 0:00:03]} Rf4 {[%emt 0:00:05]} 34. Rd2 {[%emt 0:00:10]} Ref8 {[%emt 0:00:04]} 35. Qe3 {[%emt 0:00:05]} Qxh4 {[%emt 0:00:07]} 36. Re2 {[%emt 0:00:07]} Qg4 {[%emt 0:00:03]} 37. Rd2 {[%emt 0:00:03]} h5 {[%emt 0:00:11]} 38. b5 {[%emt 0:00:07]} h4 {[%emt 0:00:03]} 39. bxc6 {[%emt 0:00:03]} bxc6 {[%emt 0:00:01]} 40. Re2 {[%emt 0:00:06]} hxg3 {[%emt 0:00:03]} 41. fxg3 {[%emt 0:00:01]} Rf3 {[%emt 0:00:03]} 42. Qe5 {[%emt 0:00:03]} Rxg3+ {[%emt 0:00:03]} 0-1